bitfinex/quotes_BTCUSD_20240827
["timestamp","ask_amount","ask_price","bid_price","bid_amount"]
[1724766760496,0.02,62407.0,62406.0,0.481545]
[1724766760711,0.007,62407.0,62406.0,0.98304813]
[1724766760932,0.016,62407.0,62406.0,0.50232513]
[1724766761167,0.016,62407.0,62406.0,0.45417063]
[1724766761383,0.007,62407.0,62406.0,0.45417063]
[1724766761830,0.012,62407.0,62406.0,0.45417063]
[1724766762048,0.005,62407.0,62406.0,0.178522]
[1724766762329,0.015,62407.0,62406.0,0.178522]
[1724766762554,0.005,62407.0,62406.0,0.178522]
[1724766762767,0.005,62407.0,62406.0,0.4276594]
[1724766762981,0.006,62407.0,62406.0,0.4306594]
[1724766763197,4.9999177,62408.0,62406.0,0.2674184]
[1724766763419,4.9999177,62408.0,62406.0,0.178522]
[1724766763672,0.001,62407.0,62406.0,0.181522]
[1724766763902,0.001,62407.0,62406.0,0.341763]
[1724766764126,0.002,62407.0,62406.0,0.347763]
[1724766764346,0.002,62407.0,62406.0,1.83401898]
[1724766764582,4.10556452,62408.0,62406.0,1.12233198]
[1724766764826,2.10365551,62408.0,62407.0,1.87043145]
[1724766765057,1.69131935,62409.0,62407.0,1.87043145]
[1724766765058,1.50666095,62409.0,62408.0,0.867706]
[1724766765303,1.50666095,62409.0,62408.0,2.11208445]
[1724766765543,3.89072749,62411.0,62410.0,0.970152]
[1724766765778,1.79209938,62412.0,62411.0,1.34234863]
[1724766766001,0.47989634,62434.0,62433.0,1.2902]
[1724766766218,0.47989634,62434.0,62433.0,2.30653463]
[1724766766451,0.000823,62438.0,62433.0,2.30653463]
[1724766766452,0.000823,62438.0,62437.0,1.290127]
[1724766766723,0.000823,62438.0,62437.0,1.710449]
[1724766766935,0.000823,62438.0,62437.0,1.89341445]
[1724766767149,0.000823,62438.0,62437.0,1.76151445]
[1724766768784,0.001823,62438.0,62437.0,1.77451445]
[1724766769199,0.000823,62438.0,62437.0,1.76151445]
[1724766769415,0.000823,62438.0,62437.0,1.77551445]
[1724766769624,0.000823,62438.0,62437.0,1.45419245]
[1724766769625,0.001823,62438.0,62437.0,1.45419245]
[1724766770258,0.001823,62438.0,62437.0,1.46819245]
[1724766770674,0.001823,62438.0,62437.0,0.76744845]
[1724766770889,0.001823,62438.0,62437.0,0.98777045]
[1724766771540,0.001823,62438.0,62437.0,0.97377045]
[1724766771765,0.001823,62438.0,62437.0,0.98196966]
[1724766771992,0.001823,62438.0,62437.0,0.98296966]
[1724766772228,0.001823,62438.0,62437.0,1.09196966]
[1724766772229,0.000823,62438.0,62437.0,1.09196966]
[1724766772471,0.002823,62438.0,62437.0,1.23426966]
[1724766772916,0.001823,62438.0,62437.0,1.22026966]
[1724766773143,0.002823,62438.0,62437.0,1.23426966]
[1724766773358,0.001823,62438.0,62437.0,1.54059166]
[1724766773568,0.000823,62438.0,62437.0,1.52659166]
[1724766773816,0.000823,62438.0,62437.0,1.84691366]
[1724766774040,0.000823,62438.0,62437.0,1.86091366]
[1724766774041,0.001823,62438.0,62437.0,1.86091366]
[1724766774492,0.001823,62438.0,62437.0,1.54059166]
[1724766774697,0.002823,62438.0,62437.0,1.55259166]
[1724766775392,0.002823,62438.0,62437.0,1.53859166]
[1724766775393,0.001823,62438.0,62437.0,1.53859166]
[1724766775622,0.000823,62438.0,62437.0,1.52659166]
[1724766775845,0.002823,62438.0,62437.0,1.55059166]
[1724766777166,0.002823,62438.0,62437.0,1.09296966]
[1724766777608,0.002823,62438.0,62437.0,1.41329166]
[1724766778282,0.002823,62438.0,62437.0,1.09296966]
[1724766779398,0.002823,62438.0,62437.0,1.43629166]
[1724766779875,0.002823,62438.0,62437.0,1.11596966]
[1724766780082,0.002823,62438.0,62437.0,1.43629166]
[1724766782639,0.002823,62438.0,62437.0,1.75661366]
[1724766782851,0.002823,62438.0,62437.0,1.43629166]
[1724766783258,0.002823,62438.0,62437.0,1.75661366]
[1724766783674,0.002823,62438.0,62437.0,1.87091366]
[1724766784343,0.050821,62440.0,62437.0,1.87091366]
[1724766784344,0.050821,62440.0,62439.0,1.441404]
[1724766784556,0.04447215,62440.0,62439.0,2.19608145]
[1724766785180,0.000821,62452.0,62451.0,1.120878]
[1724766785401,0.2535,62466.0,62453.0,0.8006]
[1724766785619,7.25027645,62454.0,62453.0,2.02128545]
[1724766785863,7.21517895,62454.0,62453.0,2.1705996]
[1724766786116,7.15113095,62454.0,62453.0,2.21575464]
[1724766786355,7.06076144,62454.0,62453.0,2.54412105]
[1724766786565,5.69777885,62454.0,62453.0,3.20622205]
[1724766786778,5.15676252,62454.0,62453.0,3.2382979]
[1724766786984,5.08160637,62454.0,62453.0,3.20514048]
[1724766787199,4.08170637,62454.0,62453.0,3.40955603]
[1724766787411,4.03970637,62454.0,62453.0,3.40955603]
[1724766787641,4.00768237,62454.0,62453.0,3.02140303]
[1724766788094,3.89703237,62454.0,62453.0,3.02140303]
[1724766788302,3.89703237,62454.0,62453.0,3.44310948]
[1724766788516,2.02129952,62453.0,62452.0,1.601225]
[1724766788741,2.02129952,62453.0,62452.0,1.97444037]
[1724766788946,2.02129952,62453.0,62452.0,2.29935637]
[1724766789382,2.02129952,62453.0,62452.0,1.62210537]
[1724766789593,2.02129952,62453.0,62452.0,1.922145]
[1724766789805,2.02129952,62453.0,62452.0,2.07015245]
[1724766790028,2.02129952,62453.0,62452.0,2.39039745]
[1724766790256,1.97699208,62453.0,62452.0,2.40439745]
[1724766790468,1.97699208,62453.0,62452.0,2.03088145]
[1724766790648,1.97699208,62453.0,62452.0,2.15388145]
[1724766790886,1.81570643,62453.0,62452.0,2.15388145]
[1724766791091,1.81570643,62453.0,62452.0,2.50621645]
[1724766791480,1.81570643,62453.0,62452.0,2.18597145]
[1724766791744,1.81570643,62453.0,62452.0,2.43943245]
[1724766791954,1.81570643,62453.0,62452.0,2.11918745]
[1724766792159,1.81570643,62453.0,62452.0,1.90706745]
[1724766792374,1.81570643,62453.0,62452.0,1.72906745]
[1724766792797,3.71917755,62452.0,62451.0,0.99267886]
[1724766792997,3.71917755,62452.0,62451.0,0.80887449]
[1724766793265,3.71917755,62452.0,62451.0,1.12912549]
[1724766793912,3.71917755,62452.0,62451.0,1.81630586]
[1724766794213,3.71917755,62452.0,62451.0,1.65602031]
[1724766794643,3.71009436,62452.0,62451.0,1.75602031]
[1724766795497,3.71109436,62452.0,62451.0,1.76902031]
[1724766795704,3.71109436,62452.0,62451.0,1.78302031]
[1724766796125,3.51777852,62452.0,62451.0,1.95202031]
[1724766796352,3.51777852,62452.0,62451.0,1.98411031]
[1724766796572,3.51777852,62452.0,62449.0,0.4]
[1724766796573,3.01588969,62451.0,62450.0,0.80064]
[1724766796786,3.01588969,62451.0,62450.0,1.46482537]
[1724766796992,3.01588969,62451.0,62450.0,1.78508137]
[1724766797193,3.01588969,62451.0,62450.0,2.01821337]
[1724766797416,2.94621358,62451.0,62450.0,2.01821337]
[1724766797626,2.94621358,62451.0,62450.0,2.92724682]
[1724766797834,2.94166626,62451.0,62450.0,2.93527547]
[1724766798045,2.86438373,62451.0,62450.0,2.56349547]
[1724766798256,2.86438373,62451.0,62450.0,2.46924347]
[1724766798466,2.86438373,62451.0,62450.0,2.45788347]
[1724766798678,2.86438373,62451.0,62450.0,2.48088347]
[1724766798887,2.86438373,62451.0,62450.0,2.30920747]
[1724766799527,2.86438373,62451.0,62450.0,2.34421664]
[1724766799528,2.86538373,62451.0,62450.0,2.34421664]
[1724766800018,2.86538373,62451.0,62450.0,1.98895147]
[1724766800019,2.86438373,62451.0,62450.0,1.98895147]
[1724766800232,2.86538373,62451.0,62450.0,1.8439614]
[1724766800489,2.86638373,62451.0,62450.0,1.98895147]
[1724766800715,2.86638373,62451.0,62450.0,2.01296085]
[1724766800938,2.86538373,62451.0,62450.0,2.33321685]
[1724766801161,2.86538373,62451.0,62450.0,4.06408885]
[1724766801380,2.86638373,62451.0,62450.0,3.48187185]
[1724766801605,2.74269373,62451.0,62450.0,2.56389685]
[1724766802072,2.74169373,62451.0,62450.0,2.56389685]
[1724766802302,2.73758258,62451.0,62450.0,2.56389685]
[1724766802550,2.67485783,62451.0,62450.0,2.73333185]
[1724766802772,2.1800698,62451.0,62450.0,2.83353365]
[1724766802993,2.09622527,62451.0,62450.0,2.84353365]
[1724766803261,2.09622527,62451.0,62450.0,2.93979334]
[1724766803492,2.09622527,62451.0,62450.0,3.45004934]
[1724766803493,0.86442499,62451.0,62450.0,3.45004934]
[1724766803725,0.85143137,62451.0,62450.0,3.42605027]
[1724766803950,0.85143137,62451.0,62450.0,3.46004765]
[1724766804405,0.84580509,62451.0,62450.0,3.45004765]
[1724766804630,0.83280509,62451.0,62450.0,3.46004765]
[1724766805079,0.83280509,62451.0,62450.0,3.26004765]
[1724766805330,0.83380509,62451.0,62450.0,3.26004765]
[1724766806524,0.82429706,62451.0,62450.0,3.26004765]
[1724766806742,0.81635694,62451.0,62450.0,3.26004765]
[1724766807226,3.42525152,62452.0,62450.0,3.26004765]
[1724766807490,1.81570643,62453.0,62450.0,3.26004765]
[1724766807491,1.61942033,62453.0,62452.0,0.425392]
[1724766807754,3.89603237,62454.0,62452.0,0.425392]
[1724766807755,3.59626566,62454.0,62452.0,7.80125459]
[1724766807972,2.61651021,62454.0,62453.0,8.44204014]
[1724766808192,1.91705681,62454.0,62453.0,7.18228473]
[1724766808449,1.41582678,62454.0,62453.0,7.08748714]
[1724766808699,1.09516105,62454.0,62453.0,7.24745259]
[1724766808946,1.09098715,62454.0,62453.0,6.77874859]
[1724766809446,1.09198715,62454.0,62453.0,6.77874859]
[1724766809715,1.07301941,62454.0,62453.0,6.89590001]
[1724766809970,1.05591941,62454.0,62453.0,6.91987204]
[1724766810190,1.04444577,62454.0,62453.0,6.93435362]
[1724766810447,0.94339959,62454.0,62453.0,6.81572324]
[1724766810692,0.91553182,62454.0,62453.0,6.80172324]
[1724766811132,0.90771026,62454.0,62453.0,6.81572324]
[1724766811632,0.90068817,62454.0,62453.0,6.81572324]
[1724766811848,0.90068817,62454.0,62453.0,6.9485189]
[1724766811849,0.90168817,62454.0,62453.0,6.9485189]
[1724766812070,0.90168817,62454.0,62453.0,6.82972324]
[1724766812546,0.80164437,62454.0,62453.0,6.81572324]
[1724766812800,0.67284437,62454.0,62453.0,6.68677124]
[1724766813038,0.64082037,62454.0,62453.0,6.80558131]
[1724766813295,0.47559224,62454.0,62453.0,1.8327476]
[1724766813528,1.571438,62470.0,62469.0,0.649237]
[1724766813745,1.571438,62470.0,62469.0,1.48629945]
[1724766814185,1.571438,62470.0,62469.0,2.04772282]
[1724766814454,1.571438,62470.0,62469.0,2.36788082]
[1724766814690,1.571438,62470.0,62469.0,1.75422282]
[1724766814917,1.571438,62470.0,62469.0,2.17065082]
[1724766814918,1.47229566,62470.0,62469.0,2.17065082]
[1724766815160,1.47229566,62470.0,62469.0,1.82672145]
[1724766815161,1.4234455,62470.0,62469.0,1.82672145]
[1724766815387,1.3565955,62470.0,62469.0,2.26987945]
[1724766815639,1.33355241,62470.0,62469.0,2.17460945]
[1724766815854,2.72523291,62469.0,62468.0,0.160081]
[1724766816086,2.71105291,62469.0,62468.0,1.915947]
[1724766816327,2.68379316,62469.0,62468.0,4.696474]
[1724766816550,2.68379316,62469.0,62468.0,2.406147]
[1724766816778,2.68379316,62469.0,62468.0,1.866579]
[1724766817030,2.68379316,62469.0,62468.0,1.589771]
[1724766817270,2.68379316,62469.0,62468.0,1.420771]
[1724766817497,2.68379316,62469.0,62468.0,1.764227]
[1724766817721,2.68379316,62469.0,62468.0,1.20200698]
[1724766817968,3.09209316,62469.0,62468.0,0.18394615]
[1724766818218,2.68479316,62469.0,62468.0,2.19314815]
[1724766818405,2.68379316,62469.0,62468.0,2.21593115]
[1724766818648,2.68379316,62469.0,62468.0,2.70509415]
[1724766818649,2.57446316,62469.0,62468.0,2.70509415]
[1724766818861,2.42859316,62469.0,62468.0,3.01125715]
[1724766819073,7.16751284,62469.0,62468.0,3.02324822]
[1724766819293,7.16751284,62469.0,62468.0,2.74008522]
[1724766819565,7.16851284,62469.0,62468.0,1.98603915]
[1724766819795,7.16851284,62469.0,62468.0,2.01101979]
[1724766820011,7.16851284,62469.0,62468.0,2.02501979]
[1724766820658,7.06482209,62469.0,62468.0,1.99803358]
[1724766820884,7.06482209,62469.0,62468.0,2.03701645]
[1724766821098,6.9070991,62469.0,62468.0,2.45734123]
[1724766821307,6.87177238,62469.0,62468.0,2.45734123]
[1724766821515,6.87177238,62469.0,62468.0,2.5048302]
[1724766821735,6.87177238,62469.0,62468.0,2.45734123]
[1724766821950,6.87177238,62469.0,62468.0,2.4453468]
[1724766822157,6.87177238,62469.0,62468.0,2.45733942]
[1724766822361,6.87177238,62469.0,62468.0,2.03701464]
[1724766822775,2.96298536,62468.0,62467.0,0.480253]
[1724766822991,2.96298536,62468.0,62467.0,0.800422]
[1724766823204,2.96298536,62468.0,62467.0,1.530986]
[1724766823417,2.96298536,62468.0,62467.0,1.510736]
[1724766824042,2.9405328,62468.0,62467.0,1.524736]
[1724766824495,2.9405328,62468.0,62467.0,0.17396545]
[1724766824706,2.9415328,62468.0,62467.0,0.27396545]
[1724766824916,2.9415328,62468.0,62467.0,0.43404945]
[1724766825128,2.9415328,62468.0,62467.0,0.75421845]
[1724766825370,2.9415328,62468.0,62467.0,1.07438745]
[1724766826028,2.9415328,62468.0,62467.0,0.4513676]
[1724766826234,3.3404328,62468.0,62467.0,0.2912836]
[1724766827285,3.3404328,62468.0,62467.0,0.1912836]
[1724766827502,3.3404328,62468.0,62467.0,0.1952836]
[1724766827503,3.5385328,62468.0,62467.0,0.1952836]
[1724766828149,3.5385328,62468.0,62467.0,0.17796545]
[1724766828380,3.5385328,62468.0,62467.0,0.004]
[1724766828600,2.9405328,62468.0,62466.0,0.01037417]
[1724766828810,2.9405328,62468.0,62467.0,0.014]
[1724766828811,3.1406328,62468.0,62467.0,0.014]
[1724766829224,3.5393328,62468.0,62467.0,0.004]
[1724766829721,3.5393328,62468.0,62467.0,0.014]
[1724766829943,3.5393328,62468.0,62458.0,0.48585079]
[1724766829944,0.4157,62466.0,62458.0,0.4755]
[1724766830168,0.4157,62464.0,62458.0,0.4755]
[1724766830379,2.9415328,62468.0,62458.0,0.4755]
[1724766830380,0.3956,62462.0,62458.0,0.4755]
[1724766830592,0.5801,62467.0,62453.0,0.0009053]
[1724766830815,0.15996545,62466.0,62458.0,0.01008901]
[1724766831038,0.15996545,62466.0,62459.0,0.01733827]
[1724766831039,0.3956,62465.0,62459.0,0.01733827]
[1724766831259,0.3956,62463.0,62453.0,0.0009053]
[1724766831486,0.1845,62462.0,62453.0,0.0009053]
[1724766831697,0.1845,62460.0,62453.0,0.01124075]
[1724766831906,0.3956,62459.0,62453.0,0.0009053]
[1724766832117,0.1845,62458.0,62453.0,0.0009053]
[1724766832367,0.3961,62457.0,62453.0,0.0009053]
[1724766832575,0.3961,62457.0,62450.0,0.0009053]
[1724766832576,0.1946,62456.0,62450.0,0.0009053]
[1724766832803,0.15996545,62457.0,62450.0,0.0009053]
[1724766832804,0.1946,62454.0,62450.0,0.01126625]
[1724766833019,0.3961,62453.0,62450.0,0.0009053]
[1724766833247,0.4162,62451.0,62450.0,0.0009053]
[1724766835265,0.4162,62451.0,62450.0,0.66492812]
[1724766835513,0.4162,62457.0,62450.0,0.60480012]
[1724766835770,0.4162,62457.0,62456.0,0.160112]
[1724766835971,3.42042914,62468.0,62456.0,0.160112]
[1724766835972,0.4076,62462.0,62461.0,0.480297]
[1724766836194,0.4076,62462.0,62461.0,0.32006345]
[1724766836408,0.4076,62462.0,62461.0,0.42006345]
[1724766836857,0.4076,62462.0,62461.0,0.74026245]
[1724766837285,0.4076,62462.0,62461.0,0.42006345]
[1724766837531,0.4086,62462.0,62461.0,0.42006345]
[1724766837740,0.001,62462.0,62461.0,0.74026245]
[1724766838817,0.4076,62466.0,62462.0,0.160095]
[1724766839021,0.4076,62466.0,62461.0,0.25996545]
[1724766839022,0.4076,62466.0,62463.0,0.42005945]
[1724766839230,0.4076,62466.0,62463.0,0.25996545]
[1724766839672,0.4076,62466.0,62463.0,0.42005945]
[1724766840128,0.4076,62466.0,62463.0,0.25996545]
[1724766840543,0.4076,62466.0,62463.0,0.43405945]
[1724766841012,0.4076,62466.0,62463.0,0.45816767]
[1724766841254,0.4076,62466.0,62463.0,0.77835667]
[1724766841470,4.22164333,62463.0,62462.0,0.160097]
[1724766841702,4.22164333,62463.0,62456.0,0.35892266]
[1724766841928,4.22164333,62463.0,62462.0,0.160097]
[1724766842589,4.22164333,62463.0,62460.0,0.1601]
[1724766842815,4.22264333,62463.0,62462.0,0.027]
[1724766843535,4.22264333,62463.0,62462.0,0.273097]
[1724766843759,4.22164333,62463.0,62462.0,0.42006245]
[1724766843991,4.22264333,62463.0,62462.0,0.74025645]
[1724766844228,4.22264333,62463.0,62462.0,1.06045045]
[1724766844450,4.22264333,62463.0,62462.0,0.75525593]
[1724766844678,4.22264333,62463.0,62462.0,0.27496493]
[1724766844909,4.22264333,62463.0,62462.0,0.43506193]
[1724766845379,4.22164333,62463.0,62462.0,0.43506193]
[1724766845624,4.22264333,62463.0,62462.0,0.43506193]
[1724766846103,4.22264333,62463.0,62462.0,0.27496493]
[1724766846314,4.22264333,62463.0,62462.0,0.25996545]
[1724766846800,4.22364333,62463.0,62462.0,0.25996545]
[1724766847272,4.22264333,62463.0,62462.0,0.25996545]
[1724766848227,4.22264333,62463.0,62462.0,0.26086965]
[1724766848704,4.22364333,62463.0,62462.0,0.26086965]
[1724766849212,4.80494333,62463.0,62462.0,0.1009042]
[1724766849457,4.80494333,62463.0,62462.0,0.0009042]
[1724766849705,0.1927,62462.0,62456.0,0.00998646]
[1724766849933,0.1927,62462.0,62453.0,0.0009053]
[1724766849934,0.5813,62462.0,62453.0,0.0009053]
[1724766850196,0.5813,62462.0,62456.0,0.064137]
[1724766850422,4.22264333,62463.0,62453.0,0.0009053]
[1724766850423,4.22364333,62463.0,62453.0,0.0009053]
[1724766850662,0.15996545,62461.0,62453.0,0.0009053]
[1724766850938,0.5813,62460.0,62453.0,0.0009053]
[1724766851155,4.22264333,62463.0,62452.0,0.48584758]
[1724766851156,0.15996545,62459.0,62452.0,0.01034758]
[1724766851626,0.1974,62454.0,62438.0,0.2764053]
[1724766851848,0.5991,62452.0,62447.0,0.01025246]
[1724766852080,0.4017,62447.0,62438.0,0.2764053]
[1724766852307,0.15996545,62451.0,62438.0,0.2764053]
[1724766852308,0.1974,62446.0,62438.0,0.2764053]
[1724766852581,0.3801,62444.0,62438.0,0.28652071]
[1724766853501,0.3801,62444.0,62438.0,0.29952071]
[1724766853719,0.3801,62444.0,62438.0,0.28652071]
[1724766854200,0.3801,62444.0,62438.0,0.29952071]
[1724766854201,0.3811,62444.0,62438.0,0.29952071]
[1724766854399,0.3811,62444.0,62439.0,0.1]
[1724766855659,0.3811,62444.0,62439.0,0.25996545]
[1724766855888,0.3811,62444.0,62439.0,0.1]
[1724766856358,0.3811,62444.0,62439.0,0.113]
[1724766856829,0.3821,62444.0,62439.0,0.113]
[1724766857547,0.3811,62444.0,62439.0,0.1]
[1724766857996,0.3821,62444.0,62439.0,0.013]
[1724766858246,0.3811,62444.0,62439.0,0.013]
[1724766858462,0.3821,62444.0,62439.0,0.013]
[1724766861709,0.002,62444.0,62440.0,0.15996545]
[1724766861950,0.002,62444.0,62441.0,0.1]
[1724766862166,0.002,62444.0,62442.0,0.32011245]
[1724766862399,0.002,62444.0,62443.0,0.1]
[1724766862645,0.001,62444.0,62443.0,0.1]
[1724766862830,0.3958,62446.0,62443.0,0.25996545]
[1724766863086,0.002,62444.0,62443.0,0.580438]
[1724766863286,0.001,62444.0,62443.0,0.580438]
[1724766863559,0.001,62444.0,62443.0,0.90073]
[1724766863791,0.002,62444.0,62443.0,0.593438]
[1724766864052,0.001,62444.0,62443.0,0.1]
[1724766864274,0.001,62444.0,62443.0,0.17296545]
[1724766864494,0.001,62444.0,62443.0,0.1]
[1724766864755,0.4,62450.0,62443.0,0.1]
[1724766864973,0.001,62444.0,62443.0,0.1]
[1724766865244,0.001,62444.0,62439.0,0.34490586]
[1724766865245,0.4,62442.0,62439.0,0.0009053]
[1724766866230,0.5774,62440.0,62439.0,0.0009053]
[1724766866454,0.73736545,62440.0,62439.0,0.0009053]
[1724766866674,0.73736545,62440.0,62439.0,0.0139053]
[1724766867430,0.73736545,62440.0,62439.0,0.0009053]
[1724766867655,0.73836545,62440.0,62439.0,0.0139053]
[1724766868817,0.73936545,62440.0,62439.0,0.0139053]
[1724766874038,0.00192404,62438.0,62429.0,0.01309844]
[1724766874288,0.00192404,62438.0,62412.0,0.0009053]
[1724766874289,0.58672404,62433.0,62412.0,0.0009053]
[1724766874523,0.4133,62430.0,62422.0,0.0128219]
[1724766874770,0.00192404,62431.0,62412.0,0.0009053]
[1724766874771,0.1973,62428.0,62412.0,0.0009053]
[1724766874992,0.57727025,62427.0,62412.0,0.01398709]
[1724766875221,0.4133,62425.0,62412.0,0.01398709]
[1724766875463,0.15996545,62424.0,62412.0,0.0009053]
[1724766875731,0.4133,62423.0,62412.0,0.0009053]
[1724766875946,0.15996545,62422.0,62412.0,0.0009053]
[1724766876174,0.4133,62421.0,62412.0,0.0009053]
[1724766876405,0.1961,62420.0,62412.0,0.0009053]
[1724766876627,0.4106,62419.0,62412.0,0.0009053]
[1724766878563,0.4116,62419.0,62412.0,0.0009053]
[1724766879239,0.4126,62419.0,62412.0,0.0009053]
[1724766879484,0.4126,62419.0,62413.0,0.01736565]
[1724766879727,0.4126,62419.0,62414.0,0.01736539]
[1724766879956,0.4126,62419.0,62413.0,0.1]
[1724766879957,0.002,62419.0,62415.0,0.01736539]
[1724766880175,0.002,62419.0,62416.0,0.01736539]
[1724766880410,0.002,62419.0,62417.0,0.01736539]
[1724766880645,0.002,62419.0,62418.0,0.01736539]
[1724766880887,0.001,62419.0,62418.0,0.01736539]
[1724766881344,0.001,62419.0,62418.0,0.33754084]
[1724766881580,0.3918,62430.0,62418.0,0.29236602]
[1724766881809,0.1878,62436.0,62419.0,0.29236602]
[1724766882090,0.3918,62435.0,62424.0,0.34400056]
[1724766882315,0.3918,62435.0,62425.0,0.19236602]
[1724766882534,0.3918,62435.0,62426.0,0.03240057]
[1724766883031,2.58426554,62413.0,62412.0,0.1611303]
[1724766883258,2.58426554,62413.0,62412.0,0.98554731]
[1724766883521,2.58426554,62413.0,62412.0,2.10127431]
[1724766883961,2.58426554,62413.0,62412.0,1.55397622]
[1724766884417,2.58426554,62413.0,62412.0,1.56797622]
[1724766885091,2.58426554,62413.0,62412.0,1.66797622]
[1724766885539,2.58426554,62413.0,62412.0,1.68197622]
[1724766885796,2.58426554,62413.0,62412.0,2.00242722]
[1724766886069,2.58426554,62413.0,62412.0,2.08832722]
[1724766886502,2.56226951,62413.0,62412.0,2.10232722]
[1724766886961,2.56226951,62413.0,62412.0,2.08832722]
[1724766887188,2.56226951,62413.0,62412.0,1.78187622]
[1724766887408,2.56226951,62413.0,62412.0,1.76787622]
[1724766887855,2.56226951,62413.0,62412.0,1.78187622]
[1724766888073,2.56226951,62413.0,62412.0,1.76787622]
[1724766888802,2.38007671,62413.0,62412.0,1.76787622]
[1724766889255,2.35907671,62413.0,62412.0,1.69010022]
[1724766890040,2.35837936,62413.0,62412.0,1.69010022]
[1724766890281,2.35837936,62413.0,62412.0,1.62034898]
[1724766890282,2.35797067,62413.0,62412.0,1.62034898]
[1724766890505,2.35897067,62413.0,62412.0,1.63434898]
[1724766890736,2.35897067,62413.0,62412.0,1.62034898]
[1724766890955,2.35997067,62413.0,62412.0,0.81022198]
[1724766891198,2.35997067,62413.0,62412.0,0.57595198]
[1724766891663,2.35897067,62413.0,62412.0,0.56295198]
[1724766892108,2.35997067,62413.0,62412.0,0.57595198]
[1724766892404,2.35997067,62413.0,62412.0,0.14073721]
[1724766892405,2.73507067,62413.0,62412.0,0.14073721]
[1724766892627,2.73507067,62413.0,62412.0,0.04073721]
[1724766893562,2.93407067,62413.0,62412.0,0.04073721]
[1724766894267,2.93407067,62413.0,62412.0,0.02673721]
[1724766894268,2.93207067,62413.0,62412.0,0.02673721]
[1724766894750,2.93207067,62413.0,62412.0,0.02773721]
[1724766894989,2.93207067,62413.0,62412.0,0.04277578]
[1724766895206,2.93307067,62413.0,62412.0,0.05477578]
[1724766896153,2.93307067,62413.0,62412.0,0.05477619]
[1724766896426,2.73407067,62413.0,62412.0,0.05477619]
[1724766896879,2.73407067,62413.0,62412.0,0.03973721]
[1724766897118,2.73407067,62413.0,62412.0,0.05477521]
[1724766898778,2.73407067,62413.0,62412.0,0.03973721]
[1724766899012,2.73407067,62413.0,62412.0,0.054778]
[1724766899729,2.73489367,62413.0,62412.0,0.054778]
[1724766900659,2.35979367,62413.0,62412.0,0.054778]
[1724766900878,2.35979367,62413.0,62412.0,0.03973721]
[1724766901127,2.35979367,62413.0,62412.0,0.05477498]
[1724766902098,2.35979367,62413.0,62412.0,0.48998975]
[1724766902348,2.35979367,62413.0,62412.0,2.39097014]
[1724766902349,2.10876737,62413.0,62412.0,2.39097014]
[1724766902595,2.10876737,62413.0,62412.0,2.63392735]
[1724766902596,2.02946737,62413.0,62412.0,2.63392735]
[1724766902837,2.02946737,62413.0,62412.0,2.51423688]
[1724766903076,2.02946737,62413.0,62412.0,1.48487204]
[1724766903291,2.02846737,62413.0,62412.0,1.28148149]
[1724766903516,2.02746737,62413.0,62412.0,1.5766764]
[1724766903737,2.02746737,62413.0,62412.0,1.8971274]
[1724766903962,2.02846737,62413.0,62412.0,1.9111274]
[1724766904639,2.02946737,62413.0,62412.0,1.9251274]
[1724766904878,2.02746737,62413.0,62412.0,1.88208963]
[1724766905084,2.02746737,62413.0,62412.0,1.89711838]
[1724766905352,2.01854737,62413.0,62412.0,1.7915117]
[1724766905799,2.01854737,62413.0,62412.0,1.9658667]
[1724766906260,2.01854737,62413.0,62412.0,1.97691462]
[1724766906480,1.12457737,62413.0,62412.0,1.86559996]
[1724766906946,1.12457737,62413.0,62412.0,0.33235419]
[1724766907167,1.12457737,62413.0,62412.0,0.19064287]
[1724766907394,1.12457737,62413.0,62412.0,0.04276596]
[1724766907621,1.12457737,62413.0,62412.0,0.02773721]
[1724766907882,1.51037737,62413.0,62412.0,0.04277387]
[1724766910492,1.12457737,62413.0,62412.0,0.04277387]
[1724766910730,1.12457737,62413.0,62412.0,0.09066771]
[1724766910956,1.10731004,62413.0,62412.0,0.84364132]
[1724766911197,1.10731004,62413.0,62412.0,2.52538761]
[1724766911198,0.99650995,62413.0,62412.0,2.52538761]
[1724766911453,0.99650995,62413.0,62412.0,2.94736161]
[1724766911683,1.31283241,62436.0,62426.0,0.27524932]
[1724766911900,0.3788,62432.0,62429.0,0.0479038]
[1724766912129,0.3788,62432.0,62430.0,0.01503666]
[1724766912345,0.3788,62432.0,62431.0,0.01503666]
[1724766914278,0.3788,62432.0,62430.0,0.014]
[1724766914496,0.3788,62432.0,62431.0,0.01500788]
[1724766914988,0.3788,62432.0,62431.0,0.01500951]
[1724766915212,0.3788,62432.0,62431.0,0.02900951]
[1724766915660,0.3788,62432.0,62431.0,0.04300951]
[1724766917569,0.3788,62432.0,62431.0,0.04300698]
[1724766918472,0.3788,62432.0,62431.0,0.14300698]
[1724766919344,0.1975,62434.0,62431.0,0.14300698]
[1724766919601,1.07085533,62436.0,62434.0,0.160168]
[1724766919849,0.85207515,62436.0,62435.0,0.45438853]
[1724766920093,0.85207515,62436.0,62435.0,0.52609375]
[1724766920330,0.85207515,62436.0,62435.0,0.29442308]
[1724766920546,0.85207515,62436.0,62435.0,0.37171401]
[1724766920824,0.85207515,62436.0,62435.0,0.3000064]
[1724766922209,0.85207515,62436.0,62435.0,0.37167276]
[1724766922423,0.85207515,62436.0,62435.0,0.2006623]
[1724766922891,0.85207515,62436.0,62435.0,0.2146623]
[1724766923099,0.85207515,62436.0,62435.0,0.14300698]
[1724766923100,1.22927515,62436.0,62435.0,0.14300698]
[1724766923311,1.22927515,62436.0,62435.0,0.04300698]
[1724766923543,0.85207515,62436.0,62435.0,0.30317298]
[1724766923764,0.85207515,62436.0,62435.0,1.11427445]
[1724766924002,0.85207515,62436.0,62435.0,1.05650977]
[1724766924226,0.85207515,62436.0,62435.0,1.50802914]
[1724766924475,0.85207515,62436.0,62435.0,1.17367501]
[1724766924933,0.85207515,62436.0,62435.0,1.09217901]
[1724766925370,0.85207515,62436.0,62435.0,1.07917539]
[1724766925582,0.85289815,62436.0,62435.0,0.93705639]
[1724766925808,0.85289815,62436.0,62435.0,0.47055739]
[1724766926019,0.85289815,62436.0,62435.0,0.61672339]
[1724766926232,0.85289815,62436.0,62435.0,0.63072339]
[1724766926443,0.85289815,62436.0,62435.0,0.74018778]
[1724766926652,0.85289815,62436.0,62435.0,0.63069296]
[1724766927091,1.25029815,62436.0,62435.0,0.1767432]
[1724766927317,1.25029815,62436.0,62435.0,0.02899638]
[1724766927548,1.43119815,62436.0,62435.0,0.11499638]
[1724766927775,1.43119815,62436.0,62435.0,0.12899638]
[1724766928230,1.43119815,62436.0,62435.0,0.14299638]